fUSD/lending_fUSD_20250109
["ID","MTS","AMOUNT","RATE_DAILY","PERIOD"]
[348330001,1736446270271,-500.0,0.00010788,2]
[348330002,1736446270280,-2877.11,0.00010788,2]
[348330003,1736446270440,-500.0,0.00010788,2]
[348330004,1736446270451,-1020.87,0.00010788,2]
[348330005,1736446270461,-500.0,0.00010788,2]
[348330006,1736446270470,-500.0,0.00010788,2]
[348330007,1736446270480,-500.0,0.00010788,2]
[348330008,1736446270491,-541.36,0.00010788,2]
[348330009,1736446270500,-500.0,0.00010788,2]
[348330010,1736446270511,-537.31,0.00010788,2]
[348330011,1736446270521,-500.0,0.00010788,2]
[348330012,1736446270530,-564.98,0.00010788,2]
[348330013,1736446270540,-509.26747284,0.00010788,2]
[348330014,1736446270550,-500.0,0.00010788,2]
[348330015,1736446270560,-500.0,0.00010788,2]
[348330016,1736446270570,-500.0,0.00010788,2]
[348330017,1736446270580,-770.91,0.00010788,2]
[348330018,1736446270589,-1325.59,0.00010788,2]
[348330019,1736446270599,-500.0,0.00010788,2]
[348330020,1736446270608,-724.37,0.00010788,2]
[348330021,1736446270618,-565.07,0.00010788,2]
[348330022,1736446270628,-500.0,0.00010788,2]
[348330023,1736446270637,-500.0,0.00010788,2]
[348330024,1736446270646,-500.0,0.00010788,2]
[348330025,1736446270656,-1157.94,0.00010788,2]
[348330026,1736446270666,-500.0,0.00010788,2]
[348330027,1736446270675,-500.0,0.00010788,2]
[348330028,1736446270684,-500.0,0.00010788,2]
[348330029,1736446270696,-738.37,0.00010788,2]
[348330030,1736446270705,-500.0,0.00010788,2]
[348330031,1736446270715,-500.0,0.00010788,2]
[348330032,1736446270724,-500.0,0.00010788,2]
[348330033,1736446270733,-500.0,0.00010788,2]
[348330034,1736446270742,-500.0,0.00010788,2]
[348330035,1736446270752,-500.0,0.00010788,2]
[348330036,1736446270761,-500.0,0.00010788,2]
[348330037,1736446270771,-500.0,0.00010788,2]
[348330038,1736446270783,-500.0,0.00010788,2]
[348330039,1736446270792,-500.0,0.00010788,2]
[348330040,1736446270801,-526.88,0.00010788,2]
[348330041,1736446270811,-500.0,0.00010788,2]
[348330042,1736446270822,-500.0,0.00010788,2]
[348330043,1736446270831,-500.0,0.00010788,2]
[348330044,1736446270840,-500.0,0.00010788,2]
[348330045,1736446270849,-500.0,0.00010788,2]
[348330046,1736446270859,-500.0,0.00010788,2]
[348330047,1736446270869,-509.65,0.00010788,2]
[348330048,1736446270879,-500.0,0.00010788,2]
[348330049,1736446270888,-914.2,0.00010788,2]
[348330050,1736446270897,-578.81,0.00010788,2]
[348330051,1736446270907,-762.95,0.00010789,2]
[348330052,1736446270917,-500.0,0.00010789,2]
[348330053,1736446270926,-1085.97,0.00010789,2]
[348330054,1736446270936,-500.0,0.00010789,2]
[348330055,1736446270946,-462.14,0.00010789,2]
[348330056,1736446270956,-1367.76,0.00010789,2]
[348330057,1736446270965,-920.0,0.00010789,2]
[348330058,1736446270974,-500.0,0.00010789,2]
[348330059,1736446270983,-500.0,0.00010789,2]
[348330060,1736446270993,-500.0,0.00010789,2]
[348330061,1736446271002,-500.0,0.00010789,2]
[348330062,1736446271011,-2408.14,0.00010789,2]
[348330063,1736446271021,-500.0,0.00010789,2]
[348330064,1736446271031,-200.96,0.00010789,2]
[348330065,1736446271040,-1733.41,0.00010789,2]
[348330066,1736446271050,-500.0,0.00010789,2]
[348330067,1736446271059,-490.20918739,0.00010789,2]
[348330068,1736446271069,-500.0,0.00010789,2]
[348330069,1736446271078,-500.0,0.00010789,2]
[348330070,1736446271087,-500.0,0.00010789,2]
[348330071,1736446271097,-6312.29,0.00010789,2]
[348330072,1736446271106,-500.0,0.00010789,2]
[348330073,1736446271116,-500.0,0.00010789,2]
[348330074,1736446271125,-500.0,0.00010789,2]
[348330075,1736446271134,-2345.7,0.00010789,2]
[348330076,1736446271143,-500.0,0.00010789,2]
[348330077,1736446271152,-500.0,0.00010789,2]
[348330078,1736446271161,-527.32,0.00010789,2]
[348330079,1736446271171,-500.0,0.00010789,2]
[348330080,1736446271180,-500.0,0.00010789,2]
[348330081,1736446271189,-500.0,0.00010789,2]
[348330082,1736446271199,-500.0,0.00010789,2]
[348330083,1736446271208,-1289.19,0.00010789,2]
[348330084,1736446271217,-384.10252869,0.00010789,2]
[348330085,1736446271227,-500.0,0.00010789,2]
[348330086,1736446271237,-500.0,0.00010789,2]
[348330087,1736446271248,-534.22,0.00010789,2]
[348330088,1736446271258,-500.0,0.00010789,2]
[348330089,1736446271268,-500.0,0.00010789,2]
[348330090,1736446271283,-500.0,0.00010789,2]
[348330091,1736446271292,-500.0,0.00010789,2]
[348330092,1736446271303,-500.0,0.00010789,2]
[348330093,1736446271312,-500.0,0.00010789,2]
[348330094,1736446271323,-959.38,0.00010789,2]
[348330095,1736446271335,-500.0,0.00010789,2]
[348330096,1736446271345,-500.0,0.00010789,2]
[348330097,1736446271355,-539.48,0.00010789,2]
[348330098,1736446271365,-500.0,0.00010789,2]
[348330099,1736446271376,-500.0,0.00010789,2]
[348330100,1736446271387,-626.84,0.00010789,2]
[348330101,1736446271397,-500.0,0.00010789,2]
[348330102,1736446271406,-590.62,0.00010789,2]
[348330103,1736446271416,-500.0,0.00010789,2]
[348330104,1736446271426,-590.65,0.00010789,2]
[348330105,1736446271435,-736.38,0.00010789,2]
[348330106,1736446271445,-500.0,0.00010789,2]
[348330107,1736446271455,-500.0,0.00010789,2]
[348330108,1736446271464,-500.0,0.00010789,2]
[348330109,1736446271475,-500.0,0.00010789,2]
[348330110,1736446271484,-500.0,0.00010789,2]
[348330111,1736446271493,-500.0,0.00010789,2]
[348330112,1736446271503,-500.0,0.00010789,2]
[348330113,1736446271512,-500.0,0.00010789,2]
[348330114,1736446271522,-500.0,0.00010789,2]
[348330115,1736446271532,-835.57,0.00010789,2]
[348330116,1736446271541,-968.37,0.00010789,2]
[348330117,1736446271552,-500.0,0.00010789,2]
[348330118,1736446271561,-507.91,0.00010789,2]
[348330119,1736446271571,-500.0,0.00010789,2]
[348330120,1736446271580,-842.86,0.00010789,2]
[348330121,1736446271590,-888.38,0.00010789,2]
[348330122,1736446271599,-300.06,0.00010789,2]
[348330123,1736446271609,-500.0,0.00010789,2]
[348330124,1736446271618,-809.97,0.00010789,2]
[348330125,1736446271628,-500.0,0.00010789,2]
[348330126,1736446271637,-500.0,0.00010789,2]
[348330127,1736446271647,-500.0,0.00010789,2]
[348330128,1736446271657,-500.0,0.00010789,2]
[348330129,1736446271666,-500.0,0.00010789,2]
[348330130,1736446271675,-1158.79,0.00010789,2]
[348330131,1736446271685,-500.0,0.00010789,2]
[348330132,1736446271696,-558.91,0.00010789,2]
[348330133,1736446271706,-500.0,0.00010789,2]
[348330134,1736446271716,-500.0,0.00010789,2]
[348330135,1736446271726,-1242.9,0.00010789,2]
[348330136,1736446271735,-500.0,0.00010789,2]
[348330137,1736446271746,-1185.16,0.00010789,2]
[348330138,1736446271756,-500.0,0.00010789,2]
[348330139,1736446271765,-500.0,0.00010789,2]
[348330140,1736446271780,-500.0,0.00010789,2]
[348330141,1736446271789,-223.45,0.00010789,2]
[348330142,1736446271798,-500.0,0.00010789,2]
[348330143,1736446271808,-1316.71,0.00010789,2]
[348330144,1736446271819,-500.0,0.00010789,2]
[348330145,1736446271828,-2776.94,0.00010789,2]
[348330146,1736446271837,-1591.82,0.00010789,2]
[348330147,1736446271848,-1402.8,0.00010789,2]
[348330148,1736446271858,-900.32,0.00010789,2]
[348330149,1736446271867,-250000.0,0.0001087,2]
[348330150,1736446271876,-500.18752387,0.00010873,2]
[348330151,1736446271886,-440.84,0.00010888,2]
[348330152,1736446271896,-500.0,0.00010889,2]
[348330153,1736446271905,-1849.82,0.00010889,2]
[348330154,1736446271915,-1436.96,0.00010889,2]
[348330155,1736446271925,-500.0,0.00010891,2]
[348330156,1736446271934,-565.23,0.00010891,2]
[348330157,1736446271947,-1202.75,0.00010891,2]
[348330158,1736446271956,-601.54,0.00010891,2]
[348330159,1736446271966,-500.0,0.00010891,2]
[348330160,1736446271975,-636.43,0.00010891,2]
[348330161,1736446271985,-500.0,0.00010891,2]
[348330162,1736446271994,-966.55,0.00010891,2]
[348330163,1736446272003,-608.61,0.00010891,2]
[348330164,1736446272013,-1619.91,0.00010891,2]
[348330165,1736446272023,-1017.76,0.00010891,2]
[348330166,1736446272033,-1429.27,0.00010891,2]
[348330167,1736446272043,-1446.77,0.00010891,2]
[348330168,1736446272052,-1947.06,0.00010891,2]
[348330169,1736446272062,-2441.87,0.00010891,2]
[348330170,1736446272072,-5799.11,0.00010891,2]
[348330171,1736446272082,-1002.85,0.00010891,2]
[348330172,1736446272091,-538.3,0.00010891,2]
[348330173,1736446272100,-628.9,0.00010891,2]
[348330174,1736446272110,-2153.94,0.00010891,2]
[348330175,1736446272120,-500.0,0.00010891,2]
[348330176,1736446272129,-1550.54,0.00010891,2]
[348330177,1736446272139,-728.92,0.00010891,2]
[348330178,1736446272148,-1048.4,0.00010891,2]
[348330179,1736446272158,-1000.0,0.00010891,2]
[348330180,1736446272168,-930.31,0.00010891,2]
[348330181,1736446272177,-500.0,0.00010891,2]
[348330182,1736446272188,-165.74284264,0.000109,2]
[348330183,1736446272198,-202.16575369,0.000109,2]
[348330184,1736446272207,-150.0,0.00010948,2]
[348330185,1736446272217,-999.0,0.00010958,2]
[348330186,1736446272226,-500.0,0.0001096,2]
[348330187,1736446272235,-1200.0,0.0001096,2]
[348330188,1736446272244,-3200.0,0.0001096,2]
[348330189,1736446272253,-150.0,0.00010976,2]
[348330190,1736446272263,-500.0,0.00010986,2]
[348330191,1736446272271,-666.0,0.00010998,2]
[348330192,1736446272281,-550.0,0.00011,2]
[348330193,1736446272290,-150.0,0.00011047,2]
[348330194,1736446272300,-150.0,0.00011047,2]
[348330195,1736446272309,-150.0,0.00011047,2]
[348330196,1736446272318,-1113.63,0.00011061,2]
[348330197,1736446272328,-500.0,0.00011061,2]
[348330198,1736446272338,-2128.58,0.00011061,2]
[348330199,1736446272347,-3067.28,0.00011061,2]
[348330200,1736446272357,-962.54,0.00011061,2]
[348330201,1736446272367,-1563.66,0.00011061,2]
[348330202,1736446272377,-500.0,0.00011061,2]
[348330203,1736446272387,-1114.99,0.00011061,2]
[348330204,1736446272396,-641.1,0.00011061,2]
[348330205,1736446272406,-2450.85,0.00011061,2]
[348330206,1736446272415,-500.0,0.00011061,2]
[348330207,1736446272424,-500.0,0.00011061,2]
[348330208,1736446272433,-882.83,0.00011061,2]
[348330209,1736446272445,-500.0,0.00011061,2]
[348330210,1736446272455,-972.84,0.00011061,2]
[348330211,1736446272464,-795.71,0.00011061,2]
[348330212,1736446272474,-500.0,0.00011062,2]
[348330213,1736446272483,-500.0,0.00011062,2]
[348330214,1736446272493,-510.32,0.00011062,2]
[348330215,1736446272502,-500.0,0.00011062,2]
[348330216,1736446272512,-500.0,0.00011062,2]
[348330217,1736446272521,-500.0,0.00011062,2]
[348330218,1736446272531,-500.0,0.00011062,2]
[348330219,1736446272540,-500.0,0.00011062,2]
[348330220,1736446272549,-500.0,0.00011062,2]
[348330221,1736446272558,-500.0,0.00011062,2]
[348330222,1736446272567,-786.64,0.00011062,2]
[348330223,1736446272576,-669.86,0.00011062,2]
[348330224,1736446272585,-500.0,0.00011062,2]
[348330225,1736446272595,-500.0,0.00011062,2]
[348330226,1736446272604,-500.0,0.00011062,2]
[348330227,1736446272613,-402.58328234,0.00011062,2]
[348330228,1736446272623,-500.0,0.00011062,2]
[348330229,1736446272632,-500.0,0.00011062,2]
[348330230,1736446272641,-500.0,0.00011062,2]
[348330231,1736446272650,-500.0,0.00011062,2]
[348330232,1736446272659,-500.0,0.00011062,2]
[348330233,1736446272668,-836.58,0.00011062,2]
[348330234,1736446272677,-500.0,0.00011062,2]
[348330235,1736446272687,-642.72,0.00011062,2]
[348330236,1736446272697,-500.0,0.00011062,2]
[348330237,1736446272707,-546.66,0.00011062,2]
[348330238,1736446272717,-500.0,0.00011062,2]
[348330239,1736446272727,-611.28,0.00011062,2]
[348330240,1736446272736,-500.0,0.00011062,2]
[348330241,1736446272747,-500.0,0.00011062,2]
[348330242,1736446272756,-500.0,0.00011062,2]
[348330243,1736446272766,-500.0,0.00011062,2]
[348330244,1736446272777,-500.0,0.00011062,2]
[348330245,1736446272787,-500.0,0.00011062,2]
[348330246,1736446272797,-500.0,0.00011062,2]
[348330247,1736446272807,-500.0,0.00011062,2]
[348330248,1736446272817,-500.0,0.00011062,2]
[348330249,1736446272827,-500.0,0.00011062,2]
[348330250,1736446272837,-747.4,0.00011062,2]
[348330251,1736446272847,-500.44,0.00011062,2]
[348330252,1736446272857,-500.0,0.00011062,2]
[348330253,1736446272867,-500.0,0.00011062,2]
[348330254,1736446272876,-500.0,0.00011062,2]
[348330255,1736446272886,-507.94,0.00011062,2]
[348330256,1736446272895,-500.0,0.00011062,2]
[348330257,1736446272905,-500.0,0.00011062,2]
[348330258,1736446272914,-500.0,0.00011062,2]
[348330259,1736446272924,-500.0,0.00011062,2]
[348330260,1736446272933,-500.0,0.00011062,2]
[348330261,1736446272944,-677.74,0.00011062,2]
[348330262,1736446272954,-500.0,0.00011062,2]
[348330263,1736446272964,-500.0,0.00011062,2]
[348330264,1736446272974,-649.22,0.00011062,2]
[348330265,1736446272984,-500.0,0.00011062,2]
[348330266,1736446272994,-500.0,0.00011062,2]
[348330267,1736446273004,-500.0,0.00011062,2]
[348330268,1736446273014,-736.91,0.00011062,2]
[348330269,1736446273023,-500.0,0.00011062,2]
[348330270,1736446273033,-500.0,0.00011062,2]
[348330271,1736446273043,-500.0,0.00011062,2]
[348330272,1736446273052,-652.46,0.00011062,2]
[348330273,1736446273062,-714.08,0.00011062,2]
[348330274,1736446273072,-500.0,0.00011062,2]
[348330275,1736446273082,-500.0,0.00011062,2]
[348330276,1736446273092,-500.0,0.00011062,2]
[348330277,1736446273102,-557.03,0.00011062,2]
[348330278,1736446273112,-200.00324742,0.00011062,2]
[348330279,1736446273122,-393.79761375,0.00011062,2]
[348330280,1736446273131,-500.0,0.00011062,2]
[348330281,1736446273296,-544.7,0.00011062,2]
[348330282,1736446273306,-500.0,0.00011062,2]
[348330283,1736446273317,-500.0,0.00011062,2]
[348330284,1736446273327,-500.0,0.00011062,2]
[348330285,1736446273336,-704.44,0.00011062,2]
[348330286,1736446273346,-524.18,0.00011062,2]
[348330287,1736446273355,-586.10276449,0.00011062,2]
[348330288,1736446273367,-500.0,0.00011062,2]
[348330289,1736446273377,-500.0,0.00011062,2]
[348330290,1736446273386,-646.53,0.00011062,2]
[348330291,1736446273396,-500.0,0.00011062,2]
[348330292,1736446273406,-500.0,0.00011062,2]
[348330293,1736446273416,-500.0,0.00011062,2]
[348330294,1736446273426,-934.69,0.00011062,2]
[348330295,1736446273436,-500.0,0.00011062,2]
[348330296,1736446273448,-500.0,0.00011062,2]
[348330297,1736446273457,-500.0,0.00011062,2]
[348330298,1736446273467,-500.0,0.00011062,2]
[348330299,1736446273477,-500.0,0.00011062,2]
[348330300,1736446273487,-500.0,0.00011062,2]
[348330301,1736446273496,-514.0,0.00011062,2]
[348330302,1736446273505,-500.0,0.00011062,2]
[348330303,1736446273515,-169.25,0.00011062,2]
[348330304,1736446273525,-500.0,0.00011062,2]
[348330305,1736446273534,-736.84,0.00011062,2]
[348330306,1736446273544,-500.0,0.00011062,2]
[348330307,1736446273554,-500.0,0.00011062,2]
[348330308,1736446273564,-500.0,0.00011062,2]
[348330309,1736446273574,-500.0,0.00011062,2]
[348330310,1736446273583,-881.49,0.00011062,2]
[348330311,1736446273592,-500.0,0.00011062,2]
[348330312,1736446273601,-500.0,0.00011062,2]
[348330313,1736446273610,-500.0,0.00011062,2]
[348330314,1736446273620,-500.0,0.00011062,2]
[348330315,1736446273630,-500.0,0.00011062,2]
[348330316,1736446273639,-1097.98,0.00011062,2]
[348330317,1736446273648,-575.7,0.00011062,2]
[348330318,1736446273658,-604.6,0.00011062,2]
[348330319,1736446273668,-500.0,0.00011062,2]
[348330320,1736446273677,-500.0,0.00011062,2]
[348330321,1736446273687,-721.27,0.00011062,2]
[348330322,1736446273698,-500.0,0.00011062,2]
[348330323,1736446273707,-500.0,0.00011062,2]
[348330324,1736446273717,-500.0,0.00011062,2]
[348330325,1736446273726,-547.73,0.00011062,2]
[348330326,1736446273735,-911.73,0.00011062,2]
[348330327,1736446273745,-500.0,0.00011062,2]
[348330328,1736446273755,-856.27,0.00011062,2]
[348330329,1736446273764,-500.0,0.00011062,2]
[348330330,1736446273774,-500.0,0.00011062,2]
[348330331,1736446273787,-500.0,0.00011062,2]
[348330332,1736446273796,-552.74,0.00011062,2]
[348330333,1736446273806,-500.0,0.00011062,2]
[348330334,1736446273816,-2976.67,0.00011062,2]
[348330335,1736446273826,-500.0,0.00011062,2]
[348330336,1736446273836,-500.0,0.00011062,2]
[348330337,1736446273846,-500.0,0.00011062,2]
[348330338,1736446273860,-500.0,0.00011062,2]
[348330339,1736446273870,-500.0,0.00011062,2]
[348330340,1736446273879,-500.0,0.00011062,2]
[348330341,1736446273889,-551.12,0.00011062,2]
[348330342,1736446273899,-500.0,0.00011062,2]
[348330343,1736446273909,-597.63,0.00011062,2]
[348330344,1736446273919,-500.0,0.00011062,2]
[348330345,1736446273928,-645.63,0.00011062,2]
[348330346,1736446273937,-500.0,0.00011062,2]
[348330347,1736446273949,-613.72,0.00011062,2]
[348330348,1736446273959,-500.0,0.00011062,2]
[348330349,1736446273969,-500.0,0.00011062,2]
[348330350,1736446273979,-423.15076002,0.00011062,2]
[348330351,1736446273989,-1554.32,0.00011062,2]
[348330352,1736446273998,-500.0,0.00011062,2]
[348330353,1736446274008,-667.84,0.00011062,2]
[348330354,1736446274018,-500.0,0.00011062,2]
[348330355,1736446274028,-500.0,0.00011062,2]
[348330356,1736446274037,-399.52451975,0.00011062,2]
[348330357,1736446274046,-500.0,0.00011062,2]
[348330358,1736446274056,-715.52,0.00011062,2]
[348330359,1736446274065,-500.0,0.00011062,2]
[348330360,1736446274075,-509.49366118,0.00011062,2]
[348330361,1736446274084,-500.0,0.00011062,2]
[348330362,1736446274094,-653.62,0.00011062,2]
[348330363,1736446274103,-500.0,0.00011062,2]
[348330364,1736446274113,-500.0,0.00011062,2]
[348330365,1736446274123,-500.0,0.00011062,2]
[348330366,1736446274133,-660.67,0.00011062,2]
[348330367,1736446274143,-500.0,0.00011062,2]
[348330368,1736446274154,-2792.63,0.00011062,2]
[348330369,1736446274163,-500.0,0.00011062,2]
[348330370,1736446274173,-500.0,0.00011062,2]
[348330371,1736446274182,-2039.19,0.00011062,2]
[348330372,1736446274197,-500.0,0.00011062,2]
[348330373,1736446274207,-1105.4,0.00011062,2]
[348330374,1736446274217,-500.0,0.00011062,2]
[348330375,1736446274230,-500.0,0.00011062,2]
[348330376,1736446274240,-500.0,0.00011062,2]
[348330377,1736446274250,-383.51714345,0.00011062,2]
[348330378,1736446274260,-500.0,0.00011062,2]
[348330379,1736446274270,-1883.64,0.00011062,2]
[348330380,1736446274280,-500.0,0.00011062,2]
[348330381,1736446274289,-500.0,0.00011062,2]
[348330382,1736446274299,-500.0,0.00011062,2]
[348330383,1736446274308,-3402.98,0.00011062,2]
[348330384,1736446274318,-947.33,0.00011062,2]
[348330385,1736446274327,-500.0,0.00011062,2]
[348330386,1736446274337,-500.0,0.00011062,2]
[348330387,1736446274347,-500.0,0.00011062,2]
[348330388,1736446274357,-500.0,0.00011062,2]
[348330389,1736446274367,-6027.63,0.00011062,2]
[348330390,1736446274377,-500.0,0.00011062,2]
[348330391,1736446274387,-500.0,0.00011062,2]
[348330392,1736446274396,-500.0,0.00011062,2]
[348330393,1736446274406,-500.0,0.00011062,2]
[348330394,1736446274417,-521.49,0.00011062,2]
[348330395,1736446274427,-500.0,0.00011062,2]
[348330396,1736446274437,-500.0,0.00011062,2]
[348330397,1736446274450,-617.41,0.00011062,2]
[348330398,1736446274460,-500.0,0.00011062,2]
[348330399,1736446274470,-2040.34,0.00011062,2]
[348330400,1736446274480,-500.0,0.00011062,2]
[348330401,1736446274490,-500.0,0.00011062,2]
[348330402,1736446274500,-544.73,0.00011062,2]
[348330403,1736446274510,-500.0,0.00011062,2]
[348330404,1736446274519,-500.0,0.00011062,2]
[348330405,1736446274529,-500.0,0.00011062,2]
[348330406,1736446274543,-500.0,0.00011062,2]
[348330407,1736446274561,-500.0,0.00011062,2]
[348330408,1736446274575,-500.0,0.00011062,2]
[348330409,1736446274592,-1167.08,0.00011062,2]
[348330410,1736446274610,-669.77,0.00011062,2]
[348330411,1736446274626,-625.31,0.00011062,2]
[348330412,1736446274640,-253.84801193,0.00011062,2]
[348330413,1736446274655,-663.2,0.00011062,2]
[348330414,1736446274672,-500.0,0.00011062,2]
[348330415,1736446274689,-1967.19,0.00011062,2]
[348330416,1736446274705,-500.0,0.00011062,2]
[348330417,1736446274721,-500.0,0.00011062,2]
[348330418,1736446274736,-960.63,0.00011062,2]
[348330419,1736446274752,-500.0,0.00011062,2]
[348330420,1736446274769,-505.09699132,0.00011062,2]
[348330421,1736446274784,-1864.07,0.00011062,2]
[348330422,1736446274797,-500.0,0.00011062,2]
[348330423,1736446274815,-500.0,0.00011062,2]
[348330424,1736446274827,-500.0,0.00011062,2]
[348330425,1736446274840,-533.66,0.00011062,2]
[348330426,1736446274857,-500.0,0.00011062,2]
[348330427,1736446274870,-224.93709319,0.00011062,2]
[348330428,1736446274884,-513.38,0.00011062,2]
[348330429,1736446274897,-500.0,0.00011062,2]
[348330430,1736446274911,-500.0,0.00011062,2]
[348330431,1736446274925,-707.52,0.00011062,2]
[348330432,1736446274939,-500.0,0.00011062,2]
[348330433,1736446274953,-500.0,0.00011062,2]
[348330434,1736446274967,-500.0,0.00011062,2]
[348330435,1736446274981,-500.0,0.00011062,2]
[348330436,1736446274996,-3800.2,0.00011062,2]
[348330437,1736446275009,-520.07,0.00011062,2]
[348330438,1736446275024,-500.0,0.00011062,2]
[348330439,1736446275038,-660.12,0.00011062,2]
[348330440,1736446275052,-767.59,0.00011062,2]
[348330441,1736446275066,-500.0,0.00011062,2]
[348330442,1736446275081,-835.3,0.00011062,2]
[348330443,1736446275096,-500.0,0.00011062,2]
[348330444,1736446275110,-500.0,0.00011062,2]
[348330445,1736446275124,-2877.11,0.00011062,2]
[348330446,1736446275138,-1020.87,0.00011062,2]
[348330447,1736446275155,-500.0,0.00011062,2]
[348330448,1736446275169,-500.0,0.00011062,2]
[348330449,1736446275183,-500.0,0.00011062,2]
[348330450,1736446275198,-541.36,0.00011062,2]
[348330451,1736446275211,-500.0,0.00011062,2]
[348330452,1736446275225,-537.31,0.00011062,2]
[348330453,1736446275239,-500.0,0.00011062,2]
[348330454,1736446275253,-564.98,0.00011062,2]
[348330455,1736446275267,-500.0,0.00011062,2]
[348330456,1736446275281,-500.0,0.00011062,2]
[348330457,1736446275295,-770.91,0.00011062,2]
[348330458,1736446275309,-1325.59,0.00011062,2]
[348330459,1736446275324,-500.0,0.00011062,2]
[348330460,1736446275338,-724.37,0.00011062,2]
[348330461,1736446275351,-565.07,0.00011062,2]
[348330462,1736446275367,-500.0,0.00011062,2]
[348330463,1736446275381,-508.9856423,0.00011062,2]
[348330464,1736446275395,-500.0,0.00011062,2]
[348330465,1736446275409,-1157.94,0.00011062,2]
[348330466,1736446275423,-500.0,0.00011062,2]
[348330467,1736446275437,-557.19,0.00011062,2]
[348330468,1736446275456,-500.0,0.00011062,2]
[348330469,1736446275469,-738.37,0.00011062,2]
[348330470,1736446275484,-500.0,0.00011062,2]
[348330471,1736446275498,-500.0,0.00011062,2]
[348330472,1736446275512,-500.0,0.00011062,2]
[348330473,1736446275526,-500.0,0.00011062,2]
[348330474,1736446275541,-500.0,0.00011062,2]
[348330475,1736446275555,-500.0,0.00011062,2]
[348330476,1736446275569,-500.0,0.00011062,2]
[348330477,1736446275583,-500.0,0.00011062,2]
[348330478,1736446275596,-500.0,0.00011062,2]
[348330479,1736446275609,-500.0,0.00011062,2]
[348330480,1736446275623,-526.88,0.00011062,2]
[348330481,1736446275637,-500.0,0.00011062,2]
[348330482,1736446275650,-500.0,0.00011062,2]
[348330483,1736446275663,-500.0,0.00011062,2]
[348330484,1736446275676,-500.0,0.00011062,2]
[348330485,1736446275690,-399.14,0.00011062,2]
[348330486,1736446275705,-500.0,0.00011062,2]
[348330487,1736446275718,-509.65,0.00011062,2]
[348330488,1736446275732,-500.0,0.00011062,2]
[348330489,1736446275745,-578.81,0.00011062,2]
[348330490,1736446275759,-914.2,0.00011062,2]
[348330491,1736446275775,-762.95,0.00011063,2]
[348330492,1736446275787,-195.16,0.00011063,2]
[348330493,1736446275800,-1085.97,0.00011063,2]
[348330494,1736446275814,-500.0,0.00011063,2]
[348330495,1736446275828,-1367.76,0.00011063,2]
[348330496,1736446275843,-920.0,0.00011063,2]
[348330497,1736446275858,-500.0,0.00011063,2]
[348330498,1736446275875,-500.0,0.00011063,2]
[348330499,1736446275890,-500.0,0.00011063,2]
[348330500,1736446275901,-500.0,0.00011063,2]